Cogmind - Beta 14 *** ADVENTURER MODE // 2024.11.10 @ 19:27:47 Player: MopeRay Result: Destroyed by G-34 Mercenary with Small Laser Performance ------------- Evolutions (1) 500 Regions Visited (3) 600 Robots Destroyed (22) 110 Value Destroyed (738) 738 Prototype IDs (0) 0 Alien Tech Used (0) 0 Bonus (0) 0 TOTAL SCORE: 1948 Bonus ------- None Cogmind --------- Core Integrity 0/400 Matter 189/300 Energy 100/100 System Corruption 0% Temperature Cool (6) Movement Core (700) Ox13 Location -9/Storage Parts ------- > --- POWER (1) -------- (None) > --- PROPULSION (4) --- (None) > --- UTILITY (2) ------ High-capacity Storage Unit > --- WEAPON (2) ------- (None) > --- INVENTORY (20) --- Ion Engine Aluminum Leg Aluminum Leg Large Storage Unit High-capacity Battery (250) Seismic Detector Transport Network Coupler ECM Suite Peak State ------------ > --- POWER ------------ Light Ion Engine > --- PROPULSION ------- Aluminum Leg Aluminum Leg Wheel Wheel > --- UTILITY ---------- Heat Sink High-capacity Storage Unit > --- WEAPON ----------- Small Laser Assault Rifle > --- INVENTORY -------- Light Nuclear Core Aluminum Leg Large Storage Unit Seismic Detector ECM Suite Grenade Launcher Datajack Mining Laser [Rating: 10] Favorites ----------- Power Light Ion Engine Engine Light Ion Engine Propulsion Aluminum Leg Leg Aluminum Leg Wheel Wheel Utility Heat Sink Device Heat Sink Storage High-capacity Storage Unit Weapon Assault Rifle Energy Gun Small Laser Ballistic Gun Assault Rifle Launcher Grenade Launcher Special Weapon Plasma Cutter Special Melee Weapon Datajack Build | -11 -10 -9 -9 ------- Run | Yrd Mat Mat Sto Slots Evolved 2 | . . 2 . Power . | . . . . Propulsion 2 | . . 2 . Utility . | . . . . Weapon . | . . . . Parts Attached 39 | 8 14 5 12 Power 3 | 1 . . 2 Engine 3 | 1 . . 2 Core . | . . . . Reactor . | . . . . Propulsion 16 | 4 6 3 3 Treads . | . . . . Leg 10 | 2 2 3 3 Wheel 6 | 2 4 . . Hover . | . . . . Flight . | . . . . Utility 6 | 1 3 2 . Device 3 | 1 1 1 . Storage 3 | . 2 1 . Processor . | . . . . Hackware . | . . . . Protection . | . . . . Artifact . | . . . . Weapon 14 | 2 5 . 7 Energy Gun 3 | . 1 . 2 Energy Cannon . | . . . . Ballistic Gun 3 | 2 1 . . Ballistic Cannon . | . . . . Launcher 2 | . 2 . . Special Weapon 4 | . . . 4 Impact Weapon . | . . . . Slashing Weapon . | . . . . Piercing Weapon . | . . . . Special Melee Weapon 2 | . 1 . 1 Unidentified Prototypes . | . . . . Parts Lost 11 | . . . 11 Power 2 | . . . 2 Propulsion 2 | . . . 2 Utility 1 | . . . 1 Weapon 6 | . . . 6 Highest Loss Streak 7 | . . . 7 To Critical Strikes . | . . . . Average Slot Usage (%) 92 | . 99 89 81 Engine 12 | . 14 11 9 Leg 18 | . 7 31 33 Wheel 12 | . 20 2 . Device 11 | . 14 11 7 Storage 12 | . 13 11 11 Energy Gun 8 | . 7 11 11 Ballistic Gun 11 | . 15 11 6 Launcher 3 | . 5 . . Peak Build Rating 10 | 6 8 10 10 Average Rating 7 | 4 7 8 7 On Entrance 5 | . 6 8 8 Naked Turns . | . . . . Heaviest Build 49 | 8 49 47 49 Greatest Support 40 | 20 20 30 40 Greatest Overweight (x) 2 | . 2 1 1 Average Overweight (x) 1 | . 1 1 1 Largest Inventory Capacity 20 | 5 20 20 20 Average Capacity 16 | 5 18 20 20 Most Carried 12 | 5 10 9 12 Average Carried 6 | 3 6 6 7 Final Capacity 20 | 5 20 20 20 Final Carried 10 | 5 10 6 8 Class Distribution -------------------- 100% | Mutant Dominant Class ---------------- Mutant | -10/Materials Mutant | -9/Materials Mutant | -9/Storage Resources | -11 -10 -9 -9 ----------- Run | Yrd Mat Mat Sto Matter Collected 657 | 304 253 . 100 Remotely . | . . . . Salvage Created 791 | 40 333 . 418 Parts 47 | 3 19 . 25 Haulers Intercepted . | . . . . Recyclers Shooed 1 | . 1 . . Parts Field Recycled . | . . . . Retrieved Matter . | . . . . Parts Self-Destructed . | . . . . Prevented . | . . . . Kills | -11 -10 -9 -9 ------- Run | Yrd Mat Mat Sto Combat Hostiles Destroyed 19 | 1 9 . 9 Guns 11 | 1 3 . 7 Cannons 2 | . . . 2 AOE 6 | . 6 . . Classes Destroyed 6 | 1 2 . 3 Worker 2 | . 2 . . Watcher 1 | . 1 . . Grunt 14 | 1 9 . 4 Brawler 1 | . . . 1 Duelist 1 | . . . 1 Sentry 3 | . . . 3 Best Kill Streak 5 | 1 5 . 3 Combat Bots Only 3 | 1 3 . 3 Max Kills in Single Turn 3 | 1 3 . 1 Gunslinging . | . . . . Exploded 2 | . 2 . . Melee . | . . . . Uniques/NPCs Destroyed . | . . . . Combat | -11 -10 -9 -9 -------- Run | Yrd Mat Mat Sto Hostile Shots Fired 166 | 2 32 . 132 Missed 43 | 1 11 . 31 Damage Taken 1510 | 8 194 . 1308 Core 450 | . 47 . 403 Absorbed by Shields . | . . . . Ignored by Resistances 437 | 2 62 . 373 Core Remaining (%) 90 | 100 81 . . Volleys Fired 82 | 4 29 . 49 Largest 2 | 2 2 . 2 Hottest 105 | 40 60 . 105 Shots Fired 124 | 8 45 . 71 Gun 112 | 8 37 . 67 Cannon . | . . . . Launcher 8 | . 8 . . Special 4 | . . . 4 Kinetic 51 | 8 29 . 14 Thermal 65 | . 8 . 57 Explosive 8 | . 8 . . Electromagnetic . | . . . . Robot Hit Streak 26 | 2 9 . 26 Robot Miss Streak 6 | 1 1 . 6 Penetration Max . | . . . . Secondary Targets 1 | . . . 1 Max Gunslinging Chain 1 | . . . 1 Shots Hit Robots 94 | 2 33 . 59 Core Hits 44 | 2 20 . 22 Critical Kills . | . . . . Critical Parts Destroyed . | . . . . Critical Strikes 2 | . . . 2 Burn 2 | . . . 2 Melee Attacks 2 | . . . 2 Impact . | . . . . Slashing . | . . . . Piercing . | . . . . Sneak Attacks . | . . . . Combat Hostiles . | . . . . Follow-up Attacks . | . . . . Damage Inflicted 1612 | 25 887 . 700 Guns 978 | 25 297 . 656 Cannons . | . . . . Explosions 590 | . 590 . . Melee . | . . . . Ramming . | . . . . Kinetic 381 | 25 234 . 122 Thermal 641 | . 63 . 578 Explosive 590 | . 590 . . Electromagnetic . | . . . . Impact . | . . . . Slashing . | . . . . Piercing . | . . . . Highest Corruption . | . . . . Average Corruption . | . . . . Corruption Purged . | . . . . Corruption Blocked . | . . . . Overload Shots . | . . . . Overflow Damage 15 | . 15 . . Projectiles . | . . . . Explosions 15 | . 15 . . Melee . | . . . . Knockbacks . | . . . . Impact . | . . . . Kinetic . | . . . . Secondary . | . . . . Self-Inflicted Damage 10 | . 10 . . Shots 1 | . 1 . . Rammed . | . . . . Targets Rammed . | . . . . Kicked . | . . . . Crushed . | . . . . Highest Temperature 102 | . 1 . 102 Average Temperature 28 | . 1 . 29 Received Heat Transfer 564 | 6 132 . 426 Siege Activations . | . . . . Robots Corrupted . | . . . . Combat Hostiles . | . . . . Parts Fried . | . . . . Impact Corruptions . | . . . . Robots Melted . | . . . . Combat Hostiles . | . . . . Parts Melted 1 | . . . 1 Heat Transferred 1678 | . 150 . 1528 Parts Sabotaged . | . . . . Parts Stolen . | . . . . Parts Stripped . | . . . . Power Chain Reactions . | . . . . Alert | -11 -10 -9 -9 ------- Run | Yrd Mat Mat Sto Peak Influence 250 | 20 250 45 183 Initial 45 | . 11 45 16 Average 64 | 11 82 45 69 Maximum Alert Level 1 | . 1 . . Low Security (%) 96 | 100 91 100 100 Level 1 3 | . 8 . . Level 2 . | . . . . Level 3 . | . . . . Level 4 . | . . . . Level 5 . | . . . . High Security . | . . . . Max Security . | . . . . Squads Dispatched 6 | . 3 . 3 Investigation 3 | . 3 . . Extermination . | . . . . Reinforcement . | . . . . Assault . | . . . . Garrison 3 | . . . 3 Intercept . | . . . . Searches Triggered . | . . . . Construction Impeded . | . . . . Haulers Reinforced . | . . . . Active Scanning Responses . | . . . . Cargo Convoy Interrupts . | . . . . Stealth | -11 -10 -9 -9 --------- Run | Yrd Mat Mat Sto Distress Signals 3 | . 1 . 2 Communications Jammed . | . . . . Distress Signals . | . . . . Times Spotted 36 | 1 17 . 18 Peak Tracking Total 6 | 1 4 . 6 Tactical Retreats . | . . . . Traps | -11 -10 -9 -9 ------- Run | Yrd Mat Mat Sto Traps Triggered 3 | . 3 . . Indirectly . | . . . . Trap Hack Attempts . | . . . . Triggered . | . . . . Disarmed . | . . . . Reprogrammed . | . . . . Reused . | . . . . Traps Extracted . | . . . . Installed . | . . . . Triggered . | . . . . Machines | -11 -10 -9 -9 ---------- Run | Yrd Mat Mat Sto Machines Disabled . | . . . . Max in Single Turn . | . . . . Machines Repaired . | . . . . Machines Dismantled . | . . . . Machines Sabotaged . | . . . . Overloaded Fab Kills . | . . . . Hacking | -11 -10 -9 -9 --------- Run | Yrd Mat Mat Sto Machines Accessed 5 | . 5 . . Terminals 4 | . 4 . . Fabricators . | . . . . Repair Stations . | . . . . Recycling Units 1 | . 1 . . Scanalyzers . | . . . . Garrison Access . | . . . . Total Hacks 15 | . 15 . . Successful 11 | . 11 . . Failed 4 | . 4 . . Catastrophic . | . . . . Database Lockouts . | . . . . Manual 1 | . 1 . . Terminals 8 | . 8 . . Fabricators . | . . . . Repair Stations . | . . . . Recycling Units 7 | . 7 . . Scanalyzers . | . . . . Garrison Access . | . . . . Terminal Hacks 6 | . 6 . . Record 5 | . 5 . . Maintenance Status 1 | . 1 . . Fabricator Hacks . | . . . . Repair Station Hacks . | . . . . Recycling Unit Hacks 5 | . 5 . . Recycle Component 4 | . 4 . . Report Inventory 1 | . 1 . . Scanalyzer . | . . . . Garrison Access Hacks . | . . . . Unauthorized Hacks . | . . . . Terminals . | . . . . Fabricators . | . . . . Repair Stations . | . . . . Recycling Units . | . . . . Scanalyzers . | . . . . Garrison Access . | . . . . Data Cores Recovered . | . . . . Used . | . . . . Hacking Detections 5 | . 5 . . Full Trace Events 2 | . 2 . . Feedback Events . | . . . . Feedback Blocked . | . . . . Robot Schematics Acquired . | . . . . Robots Built . | . . . . Authchips . | . . . . Time . | . . . . Total Robot Build Rating . | . . . . Part Schematics Acquired . | . . . . Parts Built . | . . . . Authchips . | . . . . Time . | . . . . Total Part Build Rating . | . . . . Parts Repaired . | . . . . Time . | . . . . Parts Recycled 4 | . 4 . . Recycled Matter . | . . . . Retrieved Matter . | . . . . Retrieved Components . | . . . . Parts Scanalyzed . | . . . . Part Schematics Acquired . | . . . . Parts Damaged . | . . . . Bothacking | -11 -10 -9 -9 ------------ Run | Yrd Mat Mat Sto Used RIF Installer . | . . . . Robots Hacked . | . . . . Non-combat . | . . . . Combat . | . . . . Robot Hacks Applied . | . . . . Relay Couplers Released . | . . . . Fabnet Peak Effective % . | . . . . Robots Rewired . | . . . . Allies Hacked . | . . . . Hacks Repelled . | . . . . Allies | -11 -10 -9 -9 -------- Run | Yrd Mat Mat Sto Total Allies . | . . . . Largest Group . | . . . . Highest-Rated Group . | . . . . Highest-Rated Ally . | . . . . Total Orders . | . . . . Ally Attacks . | . . . . Total Damage . | . . . . Kills . | . . . . Allies Corrupted . | . . . . Allies Melted . | . . . . Intel | -11 -10 -9 -9 ------- Run | Yrd Mat Mat Sto Robot Analysis Total . | . . . . Derelict Logs Recovered . | . . . . Drone Launches . | . . . . Drone Recoveries . | . . . . Exploration | -11 -10 -9 -9 ------------- Run | Yrd Mat Mat Sto Turns Passed 1594 | 291 756 79 468 Spaces Moved 922 | 235 512 38 137 Core 39 | 39 . . . Treads . | . . . . Legs 427 | 156 96 38 137 Wheels 456 | 40 416 . . Hover . | . . . . Flight . | . . . . Fastest Speed 50 | 50 95 190 190 Average Speed 129 | 101 121 190 190 Slowest Speed 190 | 120 190 190 190 Overloaded Moves . | . . . . Propulsion Burnouts . | . . . . Robots Hopped . | . . . . Cave-ins Triggered . | . . . . Exploration Rate (%) 22 | 7 47 3 32 Regions Visited 3 Branch Regions 1 Pre-discovered Areas . | . . . . Known Exits Taken . | . . . . Unknown Exits Taken 3 | 1 1 1 . Scrap Searched . | . . . . Spaces Dug . | . . . . Terrain Destroyed 42 | . 42 . . Melee . | . . . . Projectile . | . . . . AOE 42 | . 42 . . Terrain Rammed . | . . . . Walls Destroyed . | . . . . Machines Disabled . | . . . . Actions | -11 -10 -9 -9 --------- Run | Yrd Mat Mat Sto Total 1188 | 278 594 46 270 Wait 97 | 22 30 . 45 Move 919 | 234 511 37 137 Hop . | . . . . Pick Up 36 | 10 9 . 17 Fast Attach 2 | 1 1 . . Attach 15 | 5 1 2 7 Detach 2 | . 1 1 . Swap 22 | 2 12 3 5 Drop 11 | . . 3 8 Fire 82 | 4 29 . 49 Melee 2 | . . . 2 Ram . | . . . . Kick . | . . . . Crush . | . . . . Escape Stasis . | . . . . Rewire . | . . . . Trap . | . . . . Miscellaneous . | . . . . Route ------- -11/Scrapyard -10/Materials (discovered 2 exits: [*Mat x2]) -9/Materials -9/Storage History --------- Turn | Location | Event 2 | -11/Scrapyard | Met Revision 17 96 | -11/Scrapyard | Discovered new exit (range 8) 292 | -11/Scrapyard | Entered Materials 329 | -10/Materials | Build established: Mutant 761 | -10/Materials | Discovered new exit (range 12) 1044 | -10/Materials | Discovered new exit (range 5) 1048 | -10/Materials | Entered another Materials area 1048 | -9/Materials | Evolved 2 slots: Propulsion x2 1078 | -9/Materials | Discovered new exit (range 7) 1127 | -9/Materials | Entered Storage 1393 | -9/Storage | Garrison activated, responded to threat 1485 | -9/Storage | Lost 4 parts (1p1u2w) 1582 | -9/Storage | Core integrity fell below 50% 1590 | -9/Storage | Core integrity fell below 20% 1595 | -9/Storage | Destroyed by G-34 Mercenary with Small Laser Last Messages --------------- R-06 Scavenger collects Aluminum Leg. L-31 Rogue suffers critical hit (Burn). R-06 Scavenger collects Aluminum Leg. Plasma Cutter destroyed. Aluminum Leg severed. Aluminum Leg destroyed. L-31 Rogue heat damages Imp. Aluminum Leg. Particle Gun destroyed. Jacked L-31 Rogue... Right-click on available options for more info. Keyboard players can use Shift-a~z. Command string: protect me No effect. Aluminum Leg destroyed. Jacked L-31 Rogue... Command string: fuck you No effect. Datajack severed. R-06 Scavenger collects Hammer. [Achievement: First Step to Greatness] Map ----- +----------------------------------------------------+ | #+######+###+###???????????????????????????????? | | #?# #????#+##?????????????????????????? | | #?# ###### #?????????????????????????? | | #?# #?????????????????????????? | | #?# #?????????????????????????? | | * ### #?????????????????????????? | | * #?????????????????????????? | | * !!!#?????????????????????????? | | ###+##+### !!!#?????????????????????????? | | ? ???# !!!#?????????????????????????? | | """??## #?????????????????????????? | | ""?????# ##????????????????????????? | | "???????# % ############+## #???????? | | ????????# +???????? | | ????" !+% % #???????? | | ???" [### """" == ###" ###????????? | | ???? ???# """"" % #???????????????? | | +????##????# """"" #???????????????? | | ???????????#### ###?????????????? | | ??????????????# % +?????????????? | | ??????????????# """"" """"" #?????????????? | | ????????????### """"" """"" #???" "???????? | | ????????????# """"" %""""" # ???????? | | ????????????# %= + ???????? | | ????????????# !%! = Y #?????????????? | | ????????????######+####%=@=!%= #?????????????? | | ??????????????????????# =l [ #?????????????? | | ????????????????????? /r g #?????????????? | | ???????????????????" ########## #?????????????? | | ???????????????????""????????????#?????????????? | | ???????????????????????????????????????????????? | | ???????????????????????????????????????????????? | | ???????????????????????????????????????????????? | | ???????????????????????????????????????????????? | | ???????????????????????????????????????????????? | | ???????????????????????????????????????????????? | | ???????????????????????????????????????????????? | | ???????????????????????????????????????????????? | | ???????????????????????????????????????????????? | | ???????????????????????????????????????????????? | | ???????????????????????????????????????????????? | | ???????????????????????????????????????????????? | | ???????????????????????????????????????????????? | | ???????????????????????????????????????????????? | | ???????????????????????????????????????????????? | | ???????????????????????????????????????????????? | | ???????????????????????????????????????????????? | | ???????????????????????????????????????????????? | | ???????????????????????????????????????????????? | | ???????????????????????????????????????????????? | +----------------------------------------------------+ Best States ------------- Heat Dissipation 38 Energy Generation 10 Energy Capacity 250 Matter Stores 300 Matter Capacity 300 Sight Range 16 Terrain Scan Density 10 Resistance: KI 20 Resistance: TH 20 Resistance: EX 20 Resistance: EM 20 Resistance: I 20 Resistance: S 20 Resistance: P 20 Evasion (%) 55 Offensive Hacking 10 Item Schematics ----------------- None Robot Schematics ------------------ None Fabricated ------------ Nothing Alien Tech Used ----------------- None Achievements -------------- Crack Shot First Step to Greatness One Hack Too Far Storm Trooper Troublemaker Challenges ------------ None Game ------ Seed SingularityMagneticScanner Manual? 0 Play Time 00:34:28 Cumulative 0.5 hours Start 2024.11.10 @ 00:48:37 End 2024.11.10 @ 19:27:47 Sessions 3 Manual Loads 0 Difficulty Adventurer Special Mode None Game No. 1 Rogue 0 Adventurer 1 Explorer 0 Win Type - Total 0 Types 0/0/0/0/0/0/0/0/0 Lore% 0 Gallery% 1 Achievement% 1 Wizard Run 0 Options --------- Layout 1 ASCII 0 Keyboard 0 Movement Mouse Keybinds 0 Fullscreen 1 Font 24/Smallcaps Map View 50x35 Zoom Use 0% Tactical HUD 0 Map Filters NONE Filters NONE Steam 0 RUN: f3c05bf4-ed11-4254-96bf-be5b2ba69a85